Cogmind - Beta 9.6 @@@ ROGUE MODE // 2020.06.29 @ 12:03:42 Player: Granite Result: Destroyed by Y-45 Defender with Beam Rifle Performance ------------- Evolutions (0) 0 Regions Visited (2) 400 Robots Destroyed (7) 35 Value Destroyed (172) 172 Prototype IDs (0) 0 Alien Tech Used (0) 0 Bonus (0) 0 TOTAL SCORE: 607 Bonus ------- None Cogmind --------- Core Integrity 0/250 Matter 335/450 Energy 100/100 System Corruption 0% Temperature Cool (9) Movement Core (100) Ox1 Location -10/Mines Parts ------- > --- POWER (1) -------- (None) > --- PROPULSION (2) --- (None) > --- UTILITY (2) ------ Large Matter Pod Targeting Computer > --- WEAPON (2) ------- Grenade Launcher > --- INVENTORY (4) ---- Hacking Suite Peak State ------------ > --- POWER ------------ Light Ion Engine > --- PROPULSION ------- Wheel Wheel > --- UTILITY ---------- Small Storage Unit Targeting Computer > --- WEAPON ----------- Medium Laser Light Assault Rifle > --- INVENTORY -------- (None) [Rating: 7] Favorites ----------- Power Light Ion Engine Engine Light Ion Engine Propulsion Wheel Wheel Wheel Utility Targeting Computer Storage Small Storage Unit Processor Targeting Computer Weapon Light Assault Rifle Energy Gun Medium Laser Ballistic Gun Light Assault Rifle Launcher Grenade Launcher Build | -11 -10 -10 ------- Run | Scr Mat Min Slots Evolved . | . . . Power . | . . . Propulsion . | . . . Utility . | . . . Weapon . | . . . Parts Attached 13 | 6 7 . Power 2 | 1 1 . Engine 2 | 1 1 . Core . | . . . Reactor . | . . . Propulsion 2 | 2 . . Treads . | . . . Leg . | . . . Wheel 2 | 2 . . Hover . | . . . Flight . | . . . Utility 3 | 1 2 . Device . | . . . Storage 2 | 1 1 . Processor 1 | . 1 . Hackware . | . . . Protection . | . . . Artifact . | . . . Weapon 6 | 2 4 . Energy Gun 2 | 1 1 . Energy Cannon . | . . . Ballistic Gun 2 | 1 1 . Ballistic Cannon . | . . . Launcher 2 | . 2 . Special Weapon . | . . . Impact Weapon . | . . . Slashing Weapon . | . . . Piercing Weapon . | . . . Special Melee Weapon . | . . . Unidentified Prototypes . | . . . Parts Lost 9 | . 9 . Power 2 | . 2 . Propulsion 2 | . 2 . Utility 1 | . 1 . Weapon 4 | . 4 . Highest Loss Streak 9 | . 9 . Average Slot Usage (%) 73 | . 76 42 Engine 7 | . 8 . Wheel 17 | . 19 . Storage 12 | . 11 14 Processor 13 | . 13 14 Energy Gun 9 | . 10 . Ballistic Gun 10 | . 11 . Launcher 1 | . . 14 Naked Turns . | . . . Heaviest Build 10 | 10 10 6 Greatest Support 20 | 20 20 3 Greatest Overweight (x) 2 | . 2 1 Average Overweight (x) . | . . 1 Largest Inventory Capacity 6 | 6 6 4 Average Capacity 5 | 4 5 4 Most Carried 4 | 2 4 1 Average Carried 1 | . 1 1 Final Capacity 6 | 6 4 4 Final Carried 1 | . 1 1 Class Distribution -------------------- 100% | Mutant Dominant Class ---------------- Mutant | -10/Materials Mutant | -10/Mines Resources | -11 -10 -10 ----------- Run | Scr Mat Min Matter Collected 363 | 204 120 39 Remotely . | . . . Salvage Created 89 | . 89 . Parts 12 | . 12 . Haulers Intercepted . | . . . Recyclers Shooed . | . . . Parts Field Recycled . | . . . Retrieved Matter . | . . . Parts Self-Destructed . | . . . Prevented . | . . . Kills | -11 -10 -10 ------- Run | Scr Mat Min Combat Hostiles Destroyed 5 | . 5 . Guns 2 | . 2 . AOE 3 | . 3 . Classes Destroyed 4 | . 4 . Builder 1 | . 1 . Operator 1 | . 1 . Swarmer 3 | . 3 . Grunt 2 | . 2 . Best Kill Streak 4 | . 4 . Combat Bots Only 3 | . 3 . Max Kills in Single Turn 1 | . 1 . Gunslinging . | . . . Exploded 1 | . 1 . Melee . | . . . Uniques/NPCs Destroyed . | . . . Combat | -11 -10 -10 -------- Run | Scr Mat Min Damage Taken 791 | . 777 14 Core 252 | . 238 14 Absorbed by Shields . | . . . Core Remaining (%) 100 | 100 . . Volleys Fired 36 | . 36 . Largest 2 | . 2 . Hottest 80 | . 80 . Shots Fired 46 | . 46 . Gun 43 | . 43 . Cannon . | . . . Launcher 3 | . 3 . Special . | . . . Kinetic 13 | . 13 . Thermal 28 | . 28 . Explosive 3 | . 3 . Electromagnetic 2 | . 2 . Robot Hit Streak 4 | . 4 . Robot Miss Streak 4 | . 4 . Penetration Max . | . . . Secondary Targets 2 | . 2 . Max Gunslinging Chain 1 | . 1 . Shots Hit Robots 9 | . 9 . Core Hits 10 | . 10 . Critical Hits . | . . . Critical Kills . | . . . Critical Parts Destroyed . | . . . Melee Attacks . | . . . Impact . | . . . Slashing . | . . . Piercing . | . . . Sneak Attacks . | . . . Combat Hostiles . | . . . Follow-up Attacks . | . . . Damage Inflicted 456 | . 456 . Guns 80 | . 80 . Cannons . | . . . Explosions 376 | . 376 . Melee . | . . . Ramming . | . . . Kinetic 56 | . 56 . Thermal 226 | . 226 . Explosive 162 | . 162 . Electromagnetic 12 | . 12 . Impact . | . . . Slashing . | . . . Piercing . | . . . Highest Corruption . | . . . Average Corruption . | . . . Corruption Purged . | . . . Overload Shots . | . . . Overflow Damage 202 | . 202 . Projectiles . | . . . Explosions 202 | . 202 . Melee . | . . . Knockbacks . | . . . Impact . | . . . Kinetic . | . . . Secondary . | . . . Self-Inflicted Damage 238 | . 238 . Shots 4 | . 4 . Rammed . | . . . Targets Rammed . | . . . Kicked . | . . . Crushed . | . . . Highest Temperature 250 | . 250 . Average Temperature 97 | . 97 . Received Heat Transfer 270 | . 261 9 Effects 1 | . 1 . Interference 1 | . 1 . Siege Activations . | . . . Robots Corrupted . | . . . Combat Hostiles . | . . . Parts Fried . | . . . Impact Corruptions . | . . . Robots Melted . | . . . Combat Hostiles . | . . . Parts Melted . | . . . Heat Transferred 237 | . 237 . Parts Sabotaged . | . . . Parts Stolen . | . . . Parts Stripped . | . . . Power Chain Reactions . | . . . Missiles Intercepted . | . . . Alert | -11 -10 -10 ------- Run | Scr Mat Min Peak Influence 145 | . 145 56 Average Influence 36 | . 43 56 Maximum Alert Level . | . . . Low Security (%) 100 | 100 100 100 Level 1 . | . . . Level 2 . | . . . Level 3 . | . . . Level 4 . | . . . Level 5 . | . . . High Security . | . . . Max Security . | . . . Squads Dispatched 3 | . 3 . Investigation 1 | . 1 . Extermination . | . . . Reinforcement 2 | . 2 . Assault . | . . . Garrison . | . . . Intercept . | . . . Construction Impeded . | . . . Haulers Reinforced . | . . . Stealth | -11 -10 -10 --------- Run | Scr Mat Min Distress Signals 1 | . 1 . Communications Jammed . | . . . Distress Signals . | . . . Times Spotted 14 | . 12 2 Peak Tracking Total 8 | . 8 2 Tactical Retreats . | . . . Traps | -11 -10 -10 ------- Run | Scr Mat Min Traps Triggered 1 | . 1 . Indirectly . | . . . Trap Hack Attempts . | . . . Triggered . | . . . Disarmed . | . . . Reprogrammed . | . . . Reused . | . . . Traps Extracted . | . . . Installed . | . . . Triggered . | . . . Machines | -11 -10 -10 ---------- Run | Scr Mat Min Machines Disabled 4 | . 4 . Max in Single Turn 2 | . 2 . Machines Sabotaged . | . . . Garrisons Compromised . | . . . Overloaded Fab Kills . | . . . Fab Network Shutdowns . | . . . Hacking | -11 -10 -10 --------- Run | Scr Mat Min Machines Accessed 1 | . 1 . Terminals . | . . . Fabricators . | . . . Repair Stations . | . . . Recycling Units 1 | . 1 . Scanalyzers . | . . . Garrison Access . | . . . Total Hacks 2 | . 2 . Successful 1 | . 1 . Failed 1 | . 1 . Catastrophic . | . . . Database Lockouts . | . . . Manual . | . . . Terminals . | . . . Fabricators . | . . . Repair Stations . | . . . Recycling Units 2 | . 2 . Scanalyzers . | . . . Garrison Access . | . . . Terminal Hacks . | . . . Fabricator Hacks . | . . . Repair Station Hacks . | . . . Recycling Unit Hacks 1 | . 1 . Retrieve Components 1 | . 1 . Scanalyzer . | . . . Garrison Access Hacks . | . . . Unauthorized Hacks . | . . . Terminals . | . . . Fabricators . | . . . Repair Stations . | . . . Recycling Units . | . . . Scanalyzers . | . . . Garrison Access . | . . . Data Cores Recovered . | . . . Used . | . . . Hacking Detections . | . . . Full Trace Events . | . . . Feedback Events . | . . . Feedback Blocked . | . . . Robot Schematics Acquired . | . . . Robots Built . | . . . Matter . | . . . Time . | . . . Total Robot Build Rating . | . . . Part Schematics Acquired . | . . . Parts Built . | . . . Matter . | . . . Time . | . . . Total Part Build Rating . | . . . Parts Repaired . | . . . Time . | . . . Parts Recycled . | . . . Recycled Matter . | . . . Retrieved Matter . | . . . Retrieved Components 3 | . 3 . Parts Scanalyzed . | . . . Part Schematics Acquired . | . . . Parts Damaged . | . . . Bothacking | -11 -10 -10 ------------ Run | Scr Mat Min Used RIF Installer . | . . . Robots Hacked . | . . . Non-combat . | . . . Combat . | . . . Robot Hacks Applied . | . . . Relay Couplers Released . | . . . Robots Rewired . | . . . Allies Hacked . | . . . Hacks Repelled . | . . . Allies | -11 -10 -10 -------- Run | Scr Mat Min Total Allies . | . . . Largest Group . | . . . Highest-Rated Group . | . . . Highest-Rated Ally . | . . . Total Orders . | . . . Ally Attacks . | . . . Total Damage . | . . . Kills . | . . . Allies Corrupted . | . . . Allies Melted . | . . . Intel | -11 -10 -10 ------- Run | Scr Mat Min Robot Analysis Total . | . . . Derelict Logs Recovered . | . . . Drone Launches . | . . . Drone Recoveries . | . . . Exploration | -11 -10 -10 ------------- Run | Scr Mat Min Turns Passed 264 | 47 194 23 Spaces Moved 202 | 45 135 22 Core 75 | 2 51 22 Treads . | . . . Legs . | . . . Wheels 127 | 43 84 . Hover . | . . . Flight . | . . . Fastest Speed 50 | 50 50 100 Average Speed 78 | 78 74 100 Slowest Speed 150 | 80 150 100 Overloaded Moves . | . . . Propulsion Burnouts . | . . . Robots Hopped . | . . . Cave-ins Triggered . | . . . Exploration Rate (%) 16 | 3 38 7 Regions Visited 2 Branch Regions 1 Pre-discovered Areas . | . . . Known Exits Taken . | . . . Unknown Exits Taken 2 | 1 1 . Scrap Searched 1 | . . 1 Spaces Dug 44 | . 44 . Terrain Destroyed 93 | . 93 . Melee . | . . . Projectile . | . . . AOE 93 | . 93 . Actions | -11 -10 -10 --------- Run | Scr Mat Min Total 262 | 56 184 22 Wait . | . . . Move 200 | 44 134 22 Hop . | . . . Pick Up 13 | 6 7 . Fast Attach . | . . . Attach 12 | 6 6 . Detach . | . . . Swap 1 | . 1 . Drop . | . . . Fire 36 | . 36 . Melee . | . . . Ram . | . . . Kick . | . . . Crush . | . . . Escape Stasis . | . . . Rewire . | . . . Trap . | . . . Miscellaneous . | . . . Route ------- -11/Scrapyard -10/Materials -10/Mines History --------- Turn | Location | Event 15 | -11/Scrapyard | Discovered new exit (range 15) 48 | -11/Scrapyard | Entered Materials 207 | -10/Materials | Core integrity fell below 50% 221 | -10/Materials | Core integrity fell below 20% 227 | -10/Materials | Discovered new exit (range 12) 242 | -10/Materials | Entered Mines 246 | -10/Mines | Lost 9 parts (2p2n1u4w) 265 | -10/Mines | Destroyed by Y-45 Defender with Beam Rifle Last Messages --------------- 00208_ Lgt. Assault Rifle destroyed. 00211_ Lgt. Ion Engine destroyed. 00214_ Triggered Alarm Trap. 00214_ An alarm sounds. 00214_ ALERT: Alarm triggered, dispatching investigation squad. 00215_ Sml. Storage Unit destroyed. 00227_ EXIT=FOUND 00227_ Terminal disabled. 00230_ Acquired Grenade Launcher. 00232_ G-34 Mercenary destroyed. 00234_ G-47 Trooper destroyed. LOCATION=UNKNOWN GOAL=ESCAPE Something is scanning the area. 00244_ Searching scrap... 00244_ Found 39 Matter. 00244_ Found Hammer. 00244_ Found Sml. Laser. 00244_ Found Med. Matter Pod. 00245_ Acquired 39 matter. Map ----- +----------------------------------------------------+ | | | | | | | | | | | | | | | | | | | | | | | | | | | | | | | | | | | | | | | ???????????????????????####??????????????????????? | | ?????????????????????##"YY"#?????????????????????? | | ?????????????????????#]] ![?????????????????????? | | ?????????????????????#!] !??????????????????????? | | ????????????????????#?# ????????#####?????????? | | ???????????????????## ##//###??????# #?????????? | | ???????????????????# @ #??????# # #?????????? | | ???????????????????# ##?????# # #?????????? | | ???????????????????## ####### #[#?????????? | | ????????????????????#### # ###???????? | | ???????????????????????## #### ####/! ##??????? | | ????????????????????????## ##??# ##### ##?????? | | ?????????????????????????####???# #?????? | | ????????????????????????????????####### #?????? | | ??????????????????????????????????????# #?????? | | ??????????????????????????????????????## ##?????? | | ???????????????????????????????????????# ##??????? | | ???????????????????????????????????????# #???????? | | ???????????????????????????????????????# #???????? | | ??????????????????????????????????????? #???????? | | ??????????????????????????????????????? #???????? | | ???????????????????????????????????????###???????? | | ?????????????????????????????????????????????????? | | ?????????????????????????????????????????????????? | | ?????????????????????????????????????????????????? | | ?????????????????????????????????????????????????? | | ?????????????????????????????????????????????????? | | ?????????????????????????????????????????????????? | | ?????????????????????????????????????????????????? | | ?????????????????????????????????????????????????? | | ?????????????????????????????????????????????????? | +----------------------------------------------------+ Best States ------------- Heat Dissipation 25 Energy Generation 10 Energy Capacity 125 Matter Stores 335 Matter Capacity 450 Sight Range 16 Terrain Scan Density 10 Evasion (%) 50 Targeting Accuracy 5 Item Schematics ----------------- None Robot Schematics ------------------ None Fabricated ------------ Nothing Alien Tech Used ----------------- None Achievements -------------- None Challenges ------------ None Game ------ Seed WaveGyrokineticShotgun Manual? 0 Play Time 00:05:33 Cumulative 4.2 hours Start 2020.06.29 @ 11:58:01 End 2020.06.29 @ 12:03:42 Sessions 1 Manual Loads 0 Difficulty Rogue Special Mode None Game No. 6 Rogue 6 Adventurer 0 Explorer 0 Win Type - Total 0 Types 0/0/0/0/0/0/0 Lore% 2 Gallery% 10 Achievement% 10 Wizard Run 0 Options --------- ASCII 0 Keyboard 0 Movement Mouse Keybinds 0 Fullscreen 1 Font 24/Smallcaps Map View 76x50 Tactical HUD 1 Map Filters NONE Filters NONE Steam 1 RUN: 155e4ea1-21a2-4e56-b6b0-1773ef0a3ea8